lending/lending_fUSD_20260119
["ID","MTS","AMOUNT","RATE_DAILY","PERIOD"]
[402727574,1768848631504,-166.66,0.00015875,2]
[402727575,1768848631513,-139.26882191,0.00016209,2]
[402727576,1768848631525,-27.39117809,0.00016209,2]
[402727577,1768848631534,-166.66,0.00016543,2]
[402727578,1768848631543,-500.0,0.00016586,2]
[402727579,1768848631552,-244.78,0.00016586,2]
[402727580,1768848631561,-1000.0,0.00016586,2]
[402727581,1768848631571,-1600.0,0.00016629,2]
[402727582,1768848631580,-500.0,0.00016711,2]
[402727583,1768848631589,-151.0,0.00016837,2]
[402727584,1768848631598,-151.0,0.00016837,2]
[402727585,1768848631607,-166.66,0.00016878,2]
[402727586,1768848631617,-9999.99,0.00016878,2]
[402727587,1768848631626,-1199.06,0.00016878,2]
[402727589,1768848631635,-8235.63,0.00016878,2]
[402727590,1768848631645,-155.62,0.00016914,2]
[402727591,1768848631654,-600.0,0.00016914,2]
[402727592,1768848631663,-250.0,0.00016942,2]
[402727593,1768848631672,-1834.34,0.00017,2]
[402727594,1768848631681,-1834.34,0.00017,2]
[402727595,1768848631690,-1834.34,0.00017,2]
[402727596,1768848631699,-1834.34,0.00017,2]
[402727597,1768848631708,-1834.34,0.00017,2]
[402727598,1768848631717,-250.0,0.00017,2]
[402727599,1768848631726,-305.21882691,0.00017025,2]
[402727600,1768848631736,-166.66,0.00017056,2]
[402727601,1768848631745,-200.0,0.00017094,2]
[402727602,1768848631755,-1835.03,0.00017099,2]
[402727603,1768848631764,-322.6107,0.00017099,2]
[402727604,1768848631773,-174.61919141,0.00017099,2]
[402727605,1768848631783,-203.24462891,0.00017099,2]
[402727606,1768848631792,-620.0,0.00017099,2]
[402727607,1768848631801,-646.65982734,0.00017099,2]
[402727608,1768848631811,-4444.0,0.00017099,2]
[402727609,1768848631820,-426.99437804,0.00017099,2]
[402727610,1768848631829,-150.0,0.0001719,2]
[402727611,1768848631838,-150.0,0.0001719,2]
[402727612,1768848631847,-228.08835747,0.0001719,2]
[402727613,1768848631856,-210.20107103,0.0001719,2]
[402727614,1768848631865,-166.66,0.00017212,2]
[402727615,1768848631875,-10177.3454541,0.0001723,2]
[402727616,1768848631884,-150.0,0.00017245,2]
[402727617,1768848631894,-150.0,0.00017245,2]
[402727618,1768848631903,-500.0,0.00017245,2]
[402727619,1768848631912,-150.0,0.00017245,2]
[402727620,1768848631921,-500.0,0.00017245,2]
[402727621,1768848631931,-150.0,0.00017245,2]
[402727622,1768848631940,-1000.0,0.0001726,2]
[402727623,1768848631950,-420.0,0.00017296,2]
[402727624,1768848631959,-755.71870021,0.00017297,2]
[402727625,1768848631968,-500.0,0.000173,2]
[402727626,1768848631978,-150.0,0.000173,2]
[402727627,1768848631988,-500.0,0.000173,2]
[402727628,1768848631997,-150.0,0.000173,2]
[402727629,1768848632007,-155.62,0.00017336,2]
[402727630,1768848632019,-150.0,0.00017355,2]
[402727631,1768848632031,-500.0,0.00017355,2]
[402727632,1768848632042,-500.0,0.00017355,2]
[402727633,1768848632052,-150.0,0.00017355,2]
[402727634,1768848632063,-755.71870014,0.00017364,2]
[402727635,1768848632072,-250.0,0.00017392,2]
[402727636,1768848632081,-505.0,0.00017397,2]
[402727637,1768848632092,-349.41375875,0.000174,2]
[402727638,1768848632102,-588.0,0.00017409,2]
[402727639,1768848632111,-150.0,0.00017409,2]
[402727640,1768848632121,-755.71870014,0.00017431,2]
[402727641,1768848632131,-150.0,0.00017464,2]
[402727642,1768848632141,-150.0,0.00017464,2]
[402727643,1768848632151,-150.0,0.00017464,2]
[402727644,1768848632161,-150.0,0.00017464,2]
[402727645,1768848632171,-150.0,0.00017464,2]
[402727646,1768848632180,-150.0,0.00017464,2]
[402727647,1768848632190,-150.0,0.00017464,2]
[402727648,1768848632200,-150.0,0.00017464,2]
[402727649,1768848632209,-150.0,0.00017464,2]
[402727650,1768848632218,-755.71870014,0.00017498,2]
[402727651,1768848632228,-244.78,0.00017507,2]
[402727652,1768848632238,-200.0,0.00017519,2]
[402727653,1768848632247,-150.0,0.00017519,2]
[402727654,1768848632257,-150.0,0.00017519,2]
[402727655,1768848632267,-150.0,0.00017519,2]
[402727656,1768848632276,-150.0,0.00017519,2]
[402727657,1768848632285,-150.0,0.00017519,2]
[402727658,1768848632295,-150.0,0.00017519,2]
[402727659,1768848632304,-150.0,0.00017519,2]
[402727660,1768848632313,-250.0,0.00017519,2]
[402727661,1768848632322,-241.1,0.00017529,2]
[402727662,1768848632331,-1000.0,0.00017534,2]
[402727663,1768848632341,-166.66,0.00017546,2]
[402727664,1768848632350,-150.0,0.00017548,2]
[402727665,1768848632358,-755.71870014,0.00017565,2]
[402727666,1768848632368,-237.54584624,0.00017574,2]
[402727667,1768848632377,-150.0,0.00017574,2]
[402727668,1768848632386,-150.0,0.00017574,2]
[402727669,1768848632395,-150.0,0.00017574,2]
[402727670,1768848632404,-150.0,0.00017574,2]
[402727671,1768848632414,-150.0,0.00017574,2]
[402727672,1768848632423,-200.0,0.00017574,2]
[402727673,1768848632432,-150.0,0.00017628,2]
[402727674,1768848632441,-150.0,0.00017628,2]
[402727675,1768848632450,-150.0,0.00017628,2]
[402727676,1768848632460,-755.71870014,0.00017632,2]
[402727677,1768848632469,-2409.40287451,0.0001764,2]
[402727678,1768848632478,-168.0,0.00017649,2]
[402727679,1768848632488,-150.0,0.00017683,2]
[402727680,1768848632497,-150.0,0.00017683,2]
[402727681,1768848632507,-150.0,0.00017683,2]
[402727682,1768848632516,-755.71870014,0.00017699,2]
[402727683,1768848632526,-168.0,0.00017719,2]
[402727684,1768848632535,-1000.0,0.00017735,2]
[402727685,1768848632545,-250.0,0.00017738,2]
[402727686,1768848632555,-250.0,0.00017738,2]
[402727687,1768848632564,-250.0,0.00017738,2]
[402727688,1768848632574,-168.0,0.00017741,2]
[402727689,1768848632585,-168.0,0.00017744,2]
[402727690,1768848632595,-1000.0,0.00017747,2]
[402727691,1768848632604,-241.1,0.00017748,2]
[402727692,1768848632613,-1000.0,0.00017757,2]
[402727693,1768848632624,-155.62,0.00017759,2]
[402727694,1768848632633,-166.66,0.0001776,2]
[402727695,1768848632642,-755.71870014,0.00017766,2]
[402727696,1768848632652,-1000.0,0.00017789,2]
[402727697,1768848632662,-156.82051841,0.00017794,2]
[402727698,1768848632675,-843.17948159,0.00017794,2]
[402727699,1768848632688,-1000.0,0.000178,2]
[402727700,1768848632697,-283.22510437,0.00017808,2]
[402727701,1768848632718,-990.97939,0.00017808,2]
[402727702,1768848632730,-724.79550563,0.00017808,2]
[402727703,1768848632740,-367.0,0.00017832,2]
[402727704,1768848632750,-755.71870014,0.00017833,2]
[402727705,1768848632760,-200.0,0.00017856,2]
[402727706,1768848632770,-227.639,0.00017863,2]
[402727707,1768848632780,-500.0,0.00017864,2]
[402727708,1768848632791,-1000.0,0.00017864,2]
[402727709,1768848632800,-1000.0,0.00017864,2]
[402727710,1768848632809,-438.65696844,0.00017867,2]
[402727711,1768848632827,-928.52587715,0.00017867,2]
[402727712,1768848632839,-1100.0,0.00017867,2]
[402727713,1768848632850,-413.55879027,0.00017867,2]
[402727714,1768848632862,-247.34836414,0.00017867,2]
[402727715,1768848632872,-700.95696136,0.00017885,2]
[402727716,1768848632891,-299.04303864,0.00017885,2]
[402727717,1768848632901,-353.91724645,0.000179,2]
[402727718,1768848632911,-278.25760489,0.000179,2]
[402727719,1768848632923,-721.74239511,0.000179,2]
[402727720,1768848632932,-398.14956783,0.000179,2]
[402727721,1768848632942,-197.9425896,0.000179,3]
[402727722,1768848632952,-755.71870014,0.000179,2]
[402727723,1768848632962,-1654.8366834,0.000179,2]
[402727724,1768848632971,-2878.6653448,0.000179,2]
[402727725,1768848632981,-7427.21943595,0.000179,2]
[402727726,1768848632993,-2000.0,0.000179,2]
[402727727,1768848633005,-2518.78506904,0.000179,2]
[402727728,1768848633019,-471.84604647,0.000179,2]
[402727729,1768848633043,-1244.11929397,0.000179,2]
[402727730,1768848633056,-1703.04317917,0.000179,2]
[402727731,1768848633073,-609.653476,0.000179,2]
[402727784,1768848638119,-2655.95409762,0.000179,2]
[402727786,1768848638130,-246.96904772,0.000179,2]
[402727788,1768848638139,-369.45092514,0.000179,2]
[402727790,1768848638149,-499.8708,0.000179,2]
[402727792,1768848638159,-394.6962674,0.00017959,2]
[402727794,1768848638170,-869.3037326,0.00017959,2]
[402727796,1768848638180,-1264.0,0.00017959,2]
[402727798,1768848638190,-241.1,0.00017967,2]
[402727800,1768848638200,-500.0,0.00017973,2]
[402727802,1768848638209,-500.0,0.00017973,2]
[402727805,1768848638219,-913.58419138,0.00017986,2]
[402727806,1768848638229,-151.0,0.00017993,2]
[402727809,1768848638239,-151.0,0.00017993,2]
[402727811,1768848638249,-1000.0,0.00017994,2]
[402727813,1768848638258,-151.0,0.00017997,2]
[402727815,1768848638268,-500.0,0.00017999,2]
[402727817,1768848638278,-500.0,0.00017999,2]
[402727819,1768848638287,-500.0,0.00017999,2]
[402727820,1768848638297,-500.83,0.00017999,2]
[402727823,1768848638306,-300.0,0.00017999,2]
[402727824,1768848638317,-1019.5239975,0.00017999,2]
[402727826,1768848638328,-155.0,0.00017999,2]
[402727827,1768848638337,-1071.11189023,0.00017999,5]
[402727828,1768848638348,-300.0,0.00017999,2]
[402727829,1768848638357,-500.0,0.00017999,2]
[402727830,1768848638367,-500.0,0.00017999,2]
[402727831,1768848638376,-500.0,0.00017999,2]
[402727832,1768848638386,-300.0,0.00017999,2]
[402727833,1768848638395,-300.0,0.00017999,2]
[402727834,1768848638405,-4240.09067587,0.00018,2]
[402727835,1768848638416,-102.90932413,0.00018,2]
[402727836,1768848638426,-202.87083267,0.00018,2]
[402727837,1768848638436,-5697.5289603,0.00018,2]
[402727838,1768848638542,-640.08930251,0.00017999,2]
[402727839,1768848638553,-1256845.81464454,0.00018,2]
[402727840,1768848638814,-215.45881749,0.00017999,2]
[402727841,1768848638823,-50.89319646,0.00018,2]
[402727842,1768848638834,-2578.60560507,0.00018,2]
[402727843,1768848638846,-11092.51883498,0.00018,2]
[402727844,1768848638984,-290.85291835,0.00017999,2]
[402727845,1768848638995,-196282.00365071,0.00018,2]
[402727846,1768848639007,-3196.65031194,0.00018,2]
[402727847,1768848639025,-933.27304708,0.00018,2]
[402727848,1768848639037,-4176.20288896,0.00018,2]
[402727852,1768848640168,-8220.70234061,0.00018,2]
[402727853,1768848640179,-7659.45565738,0.00018,2]
[402727854,1768848640191,-193087.3941648,0.00018,2]
[402727855,1768848640201,-1239.49,0.00018,7]
[402727856,1768848640211,-4026402.31309135,0.00018,2]
[402727865,1768848642405,-151.0,0.00016829,2]
[402727867,1768848642415,-151.0,0.00016829,2]
[402727868,1768848642426,-1470.935252,0.00018,2]
[402727871,1768848645404,-18407.85136931,0.00018,2]
[402727872,1768848645481,-1686.89813901,0.00018,2]
[402727873,1768848645590,-356.17999848,0.00018,2]
[402727954,1768848899958,12224.72,0.00013989,2]
[402727977,1768849749093,160.15827204,0.00014661,2]
[402727981,1768849831778,-600.0,0.00015526,2]
[402727982,1768849831789,-202.94379986,0.00015526,2]
[402727983,1768849831799,-195.0,0.00015573,2]
[402727984,1768849831809,-300.0,0.00015619,2]
[402727985,1768849831819,-300.0,0.00015619,2]
[402727986,1768849831829,-300.0,0.00015619,2]
[402727987,1768849831839,-1200.0,0.00015619,2]
[402727988,1768849831849,-374.546,0.0001562,2]
[402727989,1768849831858,-79322.8506437,0.0001562,2]
[402727990,1768849831895,-4212.06258191,0.0001562,2]
[402727991,1768849831907,-1157.04799734,0.0001562,2]
[402727992,1768849831919,-1037.1543125,0.0001562,2]
[402727993,1768849831955,-4717.07066493,0.0001562,2]
[402727994,1768849831967,-2168.45160295,0.0001562,2]
[402727995,1768849831978,-501.0,0.0001562,2]
[402727996,1768849832014,-43900.16349667,0.0001562,2]
[402727997,1768849832024,-1231.79108337,0.00015706,2]
[402727998,1768849832034,-500.0,0.00015711,2]
[402727999,1768849832043,-301.69227512,0.00015711,2]
[402728000,1768849832053,-1196.0,0.00015717,2]
[402728001,1768849832063,-457.99690995,0.00015719,2]
[402728002,1768849832073,-500.0,0.00015719,2]
[402728003,1768849832082,-500.0,0.00015719,2]
[402728004,1768849832093,-459.77497061,0.00015719,2]
[402728005,1768849832102,-500.0,0.00015719,2]
[402728006,1768849832112,-810.65546484,0.00015797,2]
[402728007,1768849832121,-4716.27,0.00015953,2]
[402728008,1768849832131,-557.47,0.00015953,2]
[402728009,1768849832141,-749.31,0.00015953,2]
[402728010,1768849832151,-500.0,0.00015973,2]
[402728011,1768849832161,-500.0,0.00015973,2]
[402728012,1768849832171,-500.0,0.00015973,2]
[402728013,1768849832181,-224.94641942,0.00015973,2]
[402728014,1768849832191,-500.0,0.00015973,2]
[402728015,1768849832200,-500.0,0.00015973,2]
[402728016,1768849832210,-500.0,0.00015973,2]
[402728017,1768849832220,-500.0,0.00015973,2]
[402728018,1768849832230,-500.0,0.00015973,2]
[402728019,1768849832240,-500.0,0.00015973,2]
[402728020,1768849832250,-151.0,0.00016004,2]
[402728021,1768849832260,-158.0,0.00016004,2]
[402728022,1768849832269,-150.99,0.00016245,2]
[402728023,1768849832278,-150.0,0.00016245,2]
[402728024,1768849832287,-512.89,0.00016298,2]
[402728025,1768849832297,-3240.0,0.00016318,2]
[402728026,1768849832307,-200.0,0.00016348,2]
[402728027,1768849832317,-306.0,0.00016377,2]
[402728028,1768849832327,-253.32,0.00016465,2]
[402728029,1768849832336,-392.03,0.00016472,2]
[402728030,1768849832346,-798.33064888,0.00016521,2]
[402728031,1768849832355,-871.00530969,0.00016521,2]
[402728032,1768849832365,-1000.0,0.00016521,2]
[402728033,1768849832374,-1000.0,0.00016521,2]
[402728034,1768849832388,-495.23753405,0.00016521,2]
[402728035,1768849832398,-1000.0,0.00016521,2]
[402728036,1768849832407,-1000.0,0.00016521,2]
[402728037,1768849832416,-1000.0,0.00016521,2]
[402728038,1768849832427,-200.0,0.00016521,2]
[402728039,1768849832436,-556.08,0.0001654,2]
[402728040,1768849832446,-151.0,0.00016571,2]
[402728041,1768849832456,-151.0,0.00016571,2]
[402728042,1768849832465,-151.0,0.00016572,2]
[402728043,1768849832475,-151.0,0.00016572,2]
[402728044,1768849832484,-151.0,0.00016587,2]
[402728045,1768849832494,-151.0,0.00016587,2]
[402728046,1768849832503,-150.0,0.00016593,2]
[402728047,1768849832513,-181.00007193,0.00016682,2]
[402728048,1768849832523,-166.33,0.00016712,2]
[402728049,1768849832533,-205.97,0.00016713,2]
[402728050,1768849832543,-2513.45,0.00016718,2]
[402728051,1768849832552,-510.0,0.00016744,2]
[402728052,1768849832562,-150.0,0.00016747,2]
[402728053,1768849832571,-250.0,0.00016976,2]
[402728054,1768849832581,-600.0,0.00016976,2]
[402728055,1768849832591,-300.0,0.00016976,2]
[402728056,1768849832601,-2500.0,0.00016976,2]
[402728057,1768849832611,-195.0,0.00016976,2]
[402728058,1768849832620,-1000.0,0.0001701,2]
[402728059,1768849832630,-163.0,0.0001704,2]
[402728060,1768849832639,-7722.53758365,0.00017047,2]
[402728061,1768849832648,-250.0,0.00017049,2]
[402728062,1768849832658,-768.18807475,0.0001705,2]
[402728063,1768849832667,-282.95697626,0.00017068,2]
[402728064,1768849832677,-1500.0,0.00017068,2]
[402728065,1768849832687,-1110.38834737,0.00017068,2]
[402728066,1768849832696,-1006.18405255,0.00017068,2]
[402728067,1768849832706,-1500.0,0.00017068,2]
[402728068,1768849832716,-406.89735905,0.00017079,2]
[402728069,1768849832725,-300.0,0.00017079,2]
[402728070,1768849832735,-459.72377725,0.00017079,2]
[402728071,1768849832745,-195.0,0.00017079,2]
[402728072,1768849832755,-250.0,0.00017079,2]
[402728073,1768849832764,-420.0,0.00017083,2]
[402728074,1768849832774,-200.0,0.00017091,2]
[402728075,1768849832783,-578.20924308,0.00017099,2]
[402728076,1768849832793,-359.76179104,0.00017099,2]
[402728077,1768849832802,-151.0,0.00017099,2]
[402728078,1768849832812,-514.84070869,0.00017099,2]
[402728079,1768849832822,-4444.0,0.00017099,2]
[402728080,1768849832831,-512.89,0.00017113,2]
[402728081,1768849832841,-1680.0,0.0001717,2]
[402728082,1768849832851,-1000.0,0.0001726,2]
[402728083,1768849832861,-179.62,0.0001737,2]
[402728084,1768849832870,-557.83,0.0001737,2]
[402728085,1768849832880,-171.87,0.0001737,2]
[402728086,1768849832889,-171.87,0.0001737,2]
[402728087,1768849832898,-179.62,0.0001737,2]
[402728088,1768849832907,-557.83,0.0001737,2]
[402728089,1768849832916,-179.62,0.0001737,2]
[402728090,1768849832926,-343.74,0.0001737,2]
[402728091,1768849832935,-557.83,0.0001737,2]
[402728092,1768849832944,-179.62,0.0001737,2]
[402728093,1768849832954,-274.28,0.0001737,2]
[402728094,1768849832964,-179.62,0.0001737,2]
[402728095,1768849832973,-171.87,0.0001737,2]
[402728096,1768849832983,-1596.18550087,0.00017448,2]
[402728097,1768849832992,-150.0,0.00017464,2]
[402728098,1768849833002,-500.0,0.00017464,2]
[402728099,1768849833012,-204.23631951,0.00017464,2]
[402728100,1768849833021,-150.0,0.00017464,2]
[402728101,1768849833030,-150.0,0.00017464,2]
[402728102,1768849833040,-150.0,0.00017464,2]
[402728103,1768849833049,-150.0,0.00017464,2]
[402728104,1768849833059,-500.0,0.00017464,2]
[402728105,1768849833069,-150.0,0.00017464,2]
[402728106,1768849833079,-150.0,0.00017464,2]
[402728107,1768849833088,-150.0,0.00017464,2]
[402728108,1768849833099,-179.62,0.00017478,2]
[402728109,1768849833108,-171.87,0.00017478,2]
[402728110,1768849833118,-1596.18550086,0.00017498,2]
[402728111,1768849833127,-150.0,0.00017519,2]
[402728112,1768849833137,-550.0,0.00017519,2]
[402728113,1768849833147,-150.0,0.00017519,2]
[402728114,1768849833157,-150.0,0.00017519,2]
[402728115,1768849833166,-150.0,0.00017519,2]
[402728116,1768849833176,-150.0,0.00017519,2]
[402728117,1768849833185,-500.0,0.00017519,2]
[402728118,1768849833195,-150.0,0.00017519,2]
[402728119,1768849833204,-1000.0,0.00017534,2]
[402728120,1768849833213,-180.8,0.00017548,2]
[402728121,1768849833222,-1596.18550086,0.00017548,2]
[402728122,1768849833232,-200.0,0.00017574,2]
[402728123,1768849833242,-200.0,0.00017574,2]
[402728124,1768849833252,-150.0,0.00017574,2]
[402728125,1768849833262,-150.0,0.00017574,2]
[402728126,1768849833271,-150.0,0.00017574,2]
[402728127,1768849833281,-150.0,0.00017574,2]
[402728128,1768849833292,-200.0,0.00017574,2]
[402728129,1768849833302,-1596.18550086,0.00017599,2]
[402728130,1768849833312,-150.0,0.00017628,2]
[402728131,1768849833322,-150.0,0.00017628,2]
[402728132,1768849833331,-150.0,0.00017628,2]
[402728133,1768849833341,-1204.70143726,0.0001764,2]
[402728134,1768849833350,-533.88981491,0.00017647,2]
[402728135,1768849833360,-1000.0,0.00017648,2]
[402728136,1768849833369,-1596.18550086,0.00017649,2]
[402728137,1768849833380,-850.0,0.0001768,2]
[402728138,1768849833394,-276.37216843,0.00017683,2]
[402728139,1768849833404,-250.0,0.00017683,2]
[402728140,1768849833414,-250.0,0.00017683,2]
[402728141,1768849833424,-558.0,0.00017695,2]
[402728142,1768849833434,-1596.18550086,0.00017699,2]
[402728143,1768849833444,-1000.0,0.000177,2]
[402728144,1768849833454,-1000.0,0.000177,2]
[402728145,1768849833464,-1596.18550086,0.00017749,2]
[402728146,1768849833474,-180.8,0.00017765,2]
[402728147,1768849833484,-546.0,0.00017778,2]
[402728148,1768849833494,-1596.18550086,0.000178,2]
[402728149,1768849833504,-2000.0,0.000178,2]
[402728150,1768849833513,-1000.0,0.000178,2]
[402728151,1768849833523,-439.43995119,0.000178,2]
[402728152,1768849833533,-1999.0,0.00017808,2]
[402728153,1768849833542,-439.4399511,0.00017811,2]
[402728154,1768849833551,-439.4399511,0.00017822,2]
[402728155,1768849833560,-439.4399511,0.00017833,2]
[402728156,1768849833569,-250.63329971,0.00017837,2]
[402728157,1768849833577,-311.11508933,0.00017837,2]
[402728158,1768849833586,-192.92895939,0.00017837,2]
[402728159,1768849833595,-236.54107068,0.00017837,2]
[402728160,1768849833605,-500.0,0.00017837,2]
[402728161,1768849833614,-607.83509288,0.00017837,2]
[402728162,1768849833623,-25000.0,0.00017838,3]
[402728163,1768849833633,-439.4399511,0.00017844,2]
[402728164,1768849833642,-25000.0,0.00017847,3]
[402728165,1768849833651,-1596.18550086,0.0001785,2]
[402728166,1768849833661,-439.4399511,0.00017856,2]
[402728167,1768849833671,-25000.0,0.00017856,3]
[402728168,1768849833681,-200.0,0.00017856,2]
[402728169,1768849833690,-2502.472,0.00017862,2]
[402728170,1768849833700,-182.111,0.00017862,2]
[402728171,1768849833709,-300.0,0.00017864,2]
[402728172,1768849833719,-500.0,0.00017864,2]
[402728173,1768849833728,-500.0,0.00017864,2]
[402728174,1768849833737,-500.0,0.00017864,2]
[402728175,1768849833747,-1000.0,0.00017864,2]
[402728176,1768849833756,-25000.0,0.00017865,3]
[402728177,1768849833766,-439.4399511,0.00017867,2]
[402728178,1768849833776,-25000.0,0.00017874,3]
[402728179,1768849833786,-439.4399511,0.00017878,2]
[402728180,1768849833795,-25000.0,0.00017882,3]
[402728181,1768849833805,-439.4399511,0.00017889,2]
[402728182,1768849833815,-25000.0,0.00017891,3]
[402728183,1768849833825,-150.0,0.00017898,2]
[402728184,1768849833834,-25000.0,0.000179,3]
[402728185,1768849833844,-369.10866018,0.000179,2]
[402728186,1768849833853,-1596.18550086,0.000179,2]
[402728187,1768849833863,-1000.0,0.000179,2]
[402728188,1768849833872,-439.4399511,0.000179,2]
[402728189,1768849833882,-500.0,0.000179,2]
[402728190,1768849833892,-1919.11022986,0.000179,2]
[402728191,1768849833902,-347.39536756,0.000179,2]
[402728192,1768849833911,-197.94258959,0.000179,3]
[402728193,1768849833921,-168.0,0.00017924,2]
[402728194,1768849833931,-512.89,0.00017928,2]
[402728195,1768849833940,-550.0,0.00017946,2]
[402728196,1768849833949,-500.0,0.0001795,2]
[402728197,1768849833959,-2440.0,0.0001796,2]
[402728198,1768849833968,-4826.0,0.0001796,2]
[402728199,1768849833978,-500.91898225,0.00017973,2]
[402728200,1768849833987,-500.63067177,0.00017973,2]
[402728201,1768849833997,-500.58294228,0.00017973,2]
[402728202,1768849834006,-482.61415384,0.00017973,2]
[402728203,1768849834016,-500.60387029,0.00017973,2]
[402728204,1768849834026,-500.31236729,0.00017973,2]
[402728205,1768849834036,-501.3506626,0.00017973,2]
[402728206,1768849834047,-500.4709575,0.00017973,2]
[402728207,1768849834058,-501.4800573,0.00017973,2]
[402728208,1768849834067,-500.42412603,0.00017973,2]
[402728209,1768849834077,-501.48214447,0.00017973,2]
[402728210,1768849834086,-500.74372363,0.00017973,2]
[402728211,1768849834095,-500.0,0.00017973,2]
[402728212,1768849834105,-500.61409376,0.00017973,2]
[402728213,1768849834114,-500.77615726,0.00017973,2]
[402728214,1768849834124,-500.57417778,0.00017973,2]
[402728215,1768849834134,-501.54379044,0.00017973,2]
[402728216,1768849834144,-262.18970321,0.00017973,2]
[402728217,1768849834153,-500.37838234,0.00017973,2]
[402728218,1768849834163,-500.0,0.00017973,2]
[402728219,1768849834173,-500.4312553,0.00017973,2]
[402728220,1768849834183,-500.71471469,0.00017973,2]
[402728221,1768849834194,-150.0,0.00017975,2]
[402728222,1768849834204,-180.8,0.00017983,2]
[402728223,1768849834214,-153.95898555,0.0001799,2]
[402728224,1768849834223,-153.95898555,0.0001799,2]
[402728225,1768849834233,-153.95898555,0.0001799,2]
[402728226,1768849834243,-151.0,0.00017993,2]
[402728227,1768849834253,-151.0,0.00017993,2]
[402728228,1768849834262,-151.0,0.00017993,2]
[402728229,1768849834272,-151.0,0.00017993,2]
[402728230,1768849834282,-151.0,0.00017993,2]
[402728231,1768849834292,-151.0,0.00017993,2]
[402728232,1768849834303,-151.0,0.00017993,2]
[402728233,1768849834313,-151.0,0.00017993,2]
[402728234,1768849834322,-467.58,0.00017993,2]
[402728235,1768849834332,-152.0,0.00017994,2]
[402728236,1768849834342,-152.0,0.00017994,2]
[402728237,1768849834351,-151.0,0.00017994,2]
[402728238,1768849834360,-151.0,0.00017994,2]
[402728239,1768849834370,-151.0,0.00017994,2]
[402728240,1768849834380,-151.0,0.00017994,2]
[402728241,1768849834393,-151.0,0.00017994,2]
[402728242,1768849834402,-151.0,0.00017994,2]
[402728243,1768849834411,-151.0,0.00017994,2]
[402728244,1768849834422,-151.0,0.00017994,2]
[402728245,1768849834432,-151.0,0.00017997,2]
[402728246,1768849834442,-500.0,0.00017999,2]
[402728247,1768849834452,-500.0,0.00017999,2]
[402728248,1768849834462,-500.0,0.00017999,2]
[402728249,1768849834471,-500.0,0.00017999,2]
[402728250,1768849834481,-5800.0,0.00017999,2]
[402728251,1768849834490,-1000.0,0.00017999,2]
[402728252,1768849834500,-300.0,0.00017999,2]
[402728253,1768849834510,-300.0,0.00017999,2]
[402728254,1768849834520,-500.0,0.00017999,2]
[402728255,1768849834530,-500.0,0.00017999,2]
[402728256,1768849834540,-399.72,0.00017999,2]
[402728257,1768849834550,-300.0,0.00017999,2]
[402728258,1768849834559,-537.79333779,0.00017999,5]
[402728259,1768849834569,-3468.0,0.00018,2]
[402728260,1768849834579,-169766.92672478,0.00018,2]
[402728261,1768849834588,-2011.56,0.00018,2]
[402728262,1768849834598,-1000.0,0.00018,2]
[402728263,1768849834607,-2000.0,0.00018,2]
[402728264,1768849834617,-2000.0,0.00018,2]
[402728265,1768849834627,-2000.0,0.00018,2]
[402728266,1768849834636,-2000.0,0.00018,2]